bitfinex/quotes_BTCUSD_20240721
["timestamp","ask_amount","ask_price","bid_price","bid_amount"]
[1721556386459,0.00284,67080.0,67079.0,3.13887395]
[1721556386723,0.00284,67080.0,67079.0,4.68215552]
[1721556386963,0.00284,67080.0,67079.0,3.18215552]
[1721556387250,0.00084,67080.0,67079.0,3.17315552]
[1721556387484,0.00084,67080.0,67079.0,3.18215552]
[1721556387485,0.00284,67080.0,67079.0,3.18215552]
[1721556387711,0.00184,67080.0,67079.0,3.17715552]
[1721556387945,0.00084,67080.0,67079.0,3.17315552]
[1721556388194,0.00284,67080.0,67079.0,3.18215552]
[1721556388405,0.00184,67080.0,67079.0,3.13377968]
[1721556388627,0.00184,67080.0,67079.0,3.46909181]
[1721556388846,0.00284,67080.0,67079.0,3.62376058]
[1721556389056,0.00284,67080.0,67079.0,3.61875765]
[1721556389266,0.00284,67080.0,67079.0,3.50746212]
[1721556389472,0.00284,67080.0,67079.0,3.35279335]
[1721556389675,0.00184,67080.0,67079.0,3.34879335]
[1721556389889,0.00284,67080.0,67079.0,3.36279335]
[1721556390514,0.00184,67080.0,67079.0,3.34879335]
[1721556390732,0.00184,67080.0,67079.0,3.36279335]
[1721556390944,0.00384,67080.0,67079.0,3.63975318]
[1721556391375,0.00284,67080.0,67079.0,3.52845765]
[1721556391583,0.00384,67080.0,67079.0,3.47376371]
[1721556391826,0.00384,67080.0,67079.0,3.4737607]
[1721556392063,0.00384,67080.0,67079.0,3.48414177]
[1721556393030,0.00384,67080.0,67079.0,3.72266577]
[1721556393241,0.00384,67080.0,67079.0,3.63369541]
[1721556393444,0.00384,67080.0,67079.0,3.39517141]
[1721556394274,0.00384,67080.0,67079.0,3.34517141]
[1721556394503,0.00384,67080.0,67079.0,3.39517141]
[1721556394967,0.00384,67080.0,67079.0,2.75542958]
[1721556395182,0.00384,67080.0,67079.0,3.39516691]
[1721556395387,0.00384,67080.0,67079.0,3.70037917]
[1721556395591,0.00384,67080.0,67079.0,3.46185517]
[1721556396017,0.00384,67080.0,67079.0,3.70037917]
[1721556396258,0.00384,67080.0,67079.0,3.36997534]
[1721556396491,0.00384,67080.0,67079.0,3.46184533]
[1721556396717,0.00384,67080.0,67079.0,3.13144152]
[1721556398094,0.00384,67080.0,67079.0,3.39516686]
[1721556398308,0.00384,67080.0,67079.0,3.13143262]
[1721556398520,0.00384,67080.0,67079.0,3.01476103]
[1721556399958,0.00384,67080.0,67079.0,3.06476103]
[1721556400704,0.00384,67080.0,67079.0,3.01476103]
[1721556401332,0.00384,67080.0,67079.0,2.70542958]
[1721556401505,0.00384,67080.0,67079.0,3.05919546]
[1721556401934,0.00384,67080.0,67079.0,3.01475941]
[1721556403643,0.00384,67080.0,67079.0,3.05919103]
[1721556404674,0.00384,67080.0,67079.0,2.74986005]
[1721556404850,0.00384,67080.0,67079.0,3.05919345]
[1721556405048,0.00384,67080.0,67079.0,3.05919344]
[1721556405548,0.00384,67080.0,67079.0,2.72878467]
[1721556406343,0.00384,67080.0,67079.0,2.52168467]
[1721556406550,0.00384,67080.0,67079.0,2.47725421]
[1721556406774,0.00384,67080.0,67079.0,2.45425421]
[1721556407637,0.00384,67080.0,67079.0,2.45427643]
[1721556408060,0.00384,67080.0,67079.0,2.47727643]
[1721556411135,0.00384,67080.0,67079.0,2.47727644]
[1721556412988,0.00384,67080.0,67079.0,2.52727644]
[1721556414312,0.00384,67080.0,67079.0,2.73437643]
[1721556414515,0.00384,67080.0,67079.0,2.73437644]
[1721556414723,0.00384,67080.0,67079.0,4.23437644]
[1721556415362,0.00384,67080.0,67079.0,2.73437644]
[1721556415591,0.00384,67080.0,67079.0,2.88905425]
[1721556416221,0.00384,67080.0,67079.0,2.73437644]
[1721556416843,0.00384,67080.0,67079.0,2.93350736]
[1721556417256,0.00384,67080.0,67079.0,2.88905425]
[1721556417672,0.00384,67080.0,67079.0,2.93351041]
[1721556420633,0.00384,67080.0,67079.0,2.88904409]
[1721556420864,0.00384,67080.0,67079.0,2.88904347]
[1721556421130,0.00384,67080.0,67079.0,2.57969862]
[1721556421364,0.00384,67080.0,67079.0,2.88904297]
[1721556421880,0.04462412,67110.0,67079.0,3.58904297]
[1721556422109,0.00836,67113.0,67098.0,1.72943774]
[1721556422349,0.00836,67113.0,67098.0,3.25023909]
[1721556423019,0.00836,67113.0,67098.0,3.25015169]
[1721556423236,0.003,67099.0,67098.0,3.25015169]
[1721556423444,0.003,67099.0,67098.0,3.28844188]
[1721556424878,0.003,67099.0,67098.0,3.25244188]
[1721556425084,0.003,67099.0,67098.0,3.30244188]
[1721556425303,0.003,67099.0,67098.0,3.28844188]
[1721556425739,0.002,67099.0,67098.0,3.31644188]
[1721556426150,0.002,67099.0,67098.0,3.33044188]
[1721556426355,0.002,67099.0,67098.0,3.29215169]
[1721556428070,0.002,67099.0,67098.0,3.3024599]
[1721556429314,0.002,67099.0,67098.0,3.30245992]
[1721556435648,0.002,67099.0,67098.0,2.99320295]
[1721556435851,0.002,67099.0,67098.0,3.30245992]
[1721556438999,0.002,67099.0,67098.0,3.17875713]
[1721556439202,0.002,67099.0,67098.0,3.30245992]
[1721556439405,0.002,67099.0,67098.0,3.30245991]
[1721556442057,0.002,67099.0,67098.0,2.99320295]
[1721556442275,0.002,67099.0,67098.0,3.30245992]
[1721556443427,0.002,67099.0,67098.0,3.10755992]
[1721556443844,0.002,67099.0,67098.0,3.15755992]
[1721556445580,0.00284,67099.0,67098.0,3.15755992]
[1721556446258,0.00284,67099.0,67098.0,3.21941131]
[1721556447688,0.00284,67099.0,67098.0,3.21901358]
[1721556448092,0.08054,67099.0,67098.0,3.21901358]
[1721556448323,0.00284,67099.0,67098.0,3.21901358]
[1721556449266,0.00284,67099.0,67098.0,3.37364207]
[1721556450353,0.00284,67099.0,67098.0,3.43464207]
[1721556451574,0.00344,67099.0,67098.0,3.06353371]
[1721556451776,0.00344,67099.0,67098.0,3.43464207]
[1721556453688,0.08044,67099.0,67098.0,3.37364207]
[1721556454230,0.00344,67099.0,67098.0,3.37364207]
[1721556454842,0.00344,67099.0,67098.0,3.0643851]
[1721556455051,0.00344,67099.0,67098.0,3.00253371]
[1721556455258,0.00344,67099.0,67098.0,3.37364207]
[1721556455668,0.00344,67099.0,67098.0,3.32364207]
[1721556455877,0.00344,67099.0,67098.0,3.37364207]
[1721556456983,0.00344,67099.0,67098.0,3.16654207]
[1721556457631,0.08024,67099.0,67098.0,2.92808507]
[1721556458151,0.08024,67099.0,67098.0,2.92808508]
[1721556459250,0.00344,67099.0,67098.0,2.92808508]
[1721556460216,0.00344,67099.0,67098.0,2.97249558]
[1721556461240,0.00344,67099.0,67098.0,2.92808508]
[1721556461375,0.00344,67099.0,67098.0,2.55697671]
[1721556461578,0.00344,67099.0,67098.0,2.92808508]
[1721556462166,0.00344,67099.0,67098.0,2.99474825]
[1721556463245,0.00344,67099.0,67098.0,3.51947035]
[1721556464134,0.00344,67099.0,67098.0,3.45280718]
[1721556464335,0.00344,67099.0,67098.0,3.5416914]
[1721556464592,0.00344,67099.0,67098.0,3.17058303]
[1721556464803,0.00344,67099.0,67098.0,3.5417737]
[1721556465256,0.00344,67099.0,67098.0,3.69126418]
[1721556465489,0.00344,67099.0,67098.0,3.67726418]
[1721556465737,0.00344,67099.0,67098.0,3.64926418]
[1721556465973,0.00444,67099.0,67098.0,3.67726418]
[1721556466463,0.00344,67099.0,67098.0,3.67726418]
[1721556466931,0.00444,67099.0,67098.0,3.69126418]
[1721556467175,0.00444,67099.0,67098.0,3.80247233]
[1721556467412,0.00444,67099.0,67098.0,3.69126418]
[1721556467899,0.00444,67099.0,67098.0,3.36094208]
[1721556468136,0.00444,67099.0,67098.0,3.69126418]
[1721556469799,0.00444,67099.0,67098.0,3.37030718]
[1721556470266,0.00444,67099.0,67098.0,3.60876418]
[1721556471218,0.00444,67099.0,67098.0,3.54691034]
[1721556471460,0.00444,67099.0,67098.0,3.60876124]
[1721556472178,0.00444,67099.0,67098.0,3.37030424]
[1721556473164,0.00444,67099.0,67098.0,3.60876124]
[1721556473414,0.00444,67099.0,67098.0,3.68906124]
[1721556474142,1e-06,67099.0,67098.0,3.84616124]
[1721556474387,1e-06,67099.0,67098.0,3.78426532]
[1721556474619,1e-06,67099.0,67098.0,5.44211113]
[1721556474880,1e-06,67099.0,67098.0,5.34890701]
[1721556475129,0.00836,67103.0,67102.0,1.36919127]
[1721556475373,1e-06,67106.0,67105.0,1.57624627]
[1721556475607,1e-06,67106.0,67105.0,3.6680678]
[1721556476094,1e-06,67106.0,67105.0,3.9064998]
[1721556476333,0.002,67109.0,67108.0,1.81461727]
[1721556476334,5e-07,67109.0,67108.0,1.81461727]
[1721556476602,5e-07,67109.0,67108.0,3.90837026]
[1721556476838,5e-07,67109.0,67108.0,5.2380068]
[1721556477332,5e-07,67109.0,67108.0,5.9380068]
[1721556477658,5e-07,67109.0,67108.0,5.93789192]
[1721556477842,5e-07,67109.0,67108.0,5.95468592]
[1721556478079,1e-06,67113.0,67112.0,1.66794027]
[1721556478317,1e-06,67113.0,67112.0,3.72781492]
[1721556478547,1e-06,67113.0,67112.0,4.09952648]
[1721556478784,1e-06,67113.0,67112.0,4.09951673]
[1721556479036,1e-06,67113.0,67112.0,3.96622192]
[1721556479798,1e-06,67113.0,67112.0,4.11344116]
[1721556480052,1e-06,67113.0,67112.0,3.98022192]
[1721556480294,1e-06,67113.0,67112.0,5.48022192]
[1721556480542,0.082,67133.0,67122.0,1.61774227]
[1721556480823,0.082,67133.0,67122.0,3.04609436]
[1721556481298,0.082,67133.0,67122.0,2.93426597]
[1721556481545,0.082,67133.0,67122.0,3.0460922]
[1721556481803,0.082,67133.0,67122.0,3.04609221]
[1721556482005,0.082,67133.0,67122.0,2.9786502]
[1721556482245,0.082,67133.0,67122.0,3.04609375]
[1721556482481,0.082,67133.0,67122.0,2.97863038]
[1721556482736,0.082,67133.0,67122.0,2.69589497]
[1721556482999,0.082,67124.0,67122.0,2.40075301]
[1721556483241,0.082,67124.0,67122.0,2.70990014]
[1721556484178,9e-05,67125.0,67122.0,2.94827114]
[1721556484408,1e-06,67123.0,67122.0,3.39724214]
[1721556484638,1e-06,67123.0,67122.0,3.45192621]
[1721556485052,1e-06,67123.0,67122.0,3.40755644]
[1721556485279,1e-06,67125.0,67124.0,2.40606827]
[1721556485496,1e-06,67125.0,67124.0,3.85050889]
[1721556485720,1e-06,67125.0,67124.0,3.95644555]
[1721556485936,1e-06,67125.0,67124.0,3.74108155]
[1721556486160,1e-06,67125.0,67124.0,5.13510635]
[1721556486377,1e-06,67125.0,67124.0,5.13039143]
[1721556486595,1e-06,67125.0,67124.0,5.11879727]
[1721556487047,1e-06,67125.0,67124.0,5.10479727]
[1721556487462,1e-06,67125.0,67124.0,5.11879727]
[1721556488939,1e-06,67125.0,67124.0,5.13279727]
[1721556489153,0.00836,67137.0,67128.0,1.42927727]
[1721556489383,0.00836,67137.0,67128.0,3.06412204]
[1721556490211,0.00836,67137.0,67128.0,3.13042204]
[1721556490446,0.00553996,67137.0,67136.0,1.17205127]
[1721556490667,0.00553996,67137.0,67136.0,2.40307822]
[1721556491491,0.00553996,67137.0,67136.0,2.44267238]
[1721556491701,0.00553996,67137.0,67136.0,2.48633238]
[1721556492135,0.00553996,67137.0,67136.0,2.44267238]
[1721556492336,0.00553996,67137.0,67136.0,2.48633238]
[1721556492539,0.00553996,67137.0,67136.0,2.44267238]
[1721556492751,0.00553996,67137.0,67136.0,2.45666402]
[1721556492950,0.00553996,67137.0,67136.0,2.52256891]
[1721556493155,0.00553996,67137.0,67136.0,2.50856891]
[1721556493553,0.00553996,67137.0,67136.0,2.52256891]
[1721556494251,0.00553996,67137.0,67136.0,2.58656891]
[1721556494665,0.00553996,67137.0,67136.0,2.57256891]
[1721556495066,0.00553996,67137.0,67136.0,2.39702717]
[1721556495271,0.00553996,67137.0,67136.0,2.57256769]
[1721556495513,0.00553996,67137.0,67136.0,2.49266344]
[1721556495714,0.00553996,67137.0,67136.0,2.54456775]
[1721556495937,0.00553996,67137.0,67136.0,2.55856775]
[1721556496138,0.00553996,67137.0,67136.0,2.52066347]
[1721556496344,0.00553996,67137.0,67136.0,2.58256347]
[1721556496550,0.00553996,67137.0,67136.0,2.51856347]
[1721556496753,0.00553996,67137.0,67136.0,2.50456347]
[1721556496980,0.00553996,67137.0,67136.0,2.56856347]
[1721556497193,0.00553996,67137.0,67136.0,2.80401792]
[1721556497397,0.00553996,67137.0,67136.0,3.19943992]
[1721556497817,0.00553996,67137.0,67136.0,3.21343992]
[1721556498022,0.00553996,67137.0,67136.0,3.25709992]
[1721556498740,0.00553996,67137.0,67136.0,3.25708387]
[1721556498887,0.00553996,67137.0,67136.0,3.10152387]
[1721556499319,0.00553996,67137.0,67136.0,2.69976187]
[1721556499523,0.00553996,67137.0,67136.0,2.67010187]
[1721556499897,0.00553996,67137.0,67136.0,2.63050771]
[1721556501759,0.14753996,67137.0,67136.0,2.36918571]
[1721556501965,0.14753996,67137.0,67136.0,2.06011101]
[1721556502170,0.14753996,67137.0,67136.0,2.42114152]
[1721556502576,0.14753996,67137.0,67136.0,2.36922666]
[1721556502780,0.14753996,67137.0,67136.0,2.42114361]
[1721556503171,0.14753996,67137.0,67136.0,2.39222666]
[1721556505031,0.14753996,67137.0,67136.0,2.20582803]
[1721556505235,0.14753996,67137.0,67136.0,1.96844811]
[1721556506032,0.14753996,67137.0,67136.0,0.82752384]
[1721556506234,0.14753996,67137.0,67136.0,1.02294434]
[1721556506434,0.14753996,67137.0,67136.0,0.83512611]
[1721556506637,0.14753996,67137.0,67136.0,0.80352384]
[1721556506838,0.14753996,67137.0,67136.0,0.84412611]
[1721556507053,0.14753996,67137.0,67136.0,1.03194541]
[1721556507253,0.14753996,67137.0,67136.0,1.08154768]
[1721556507621,0.14753996,67137.0,67136.0,1.09054768]
[1721556508205,0.14753996,67137.0,67136.0,0.1416591]
[1721556508415,0.14753996,67137.0,67136.0,0.14259243]
[1721556508824,0.14753996,67137.0,67136.0,0.14259338]
[1721556509032,0.14753996,67137.0,67136.0,0.15159338]
[1721556509239,0.26669896,67137.0,67136.0,0.15159338]
[1721556509418,0.26669896,67137.0,67136.0,0.12459338]
[1721556509419,0.74333496,67137.0,67136.0,0.12459338]
[1721556509686,0.74333496,67137.0,67136.0,0.04229338]
[1721556509687,0.82567591,67137.0,67136.0,0.04229338]
[1721556509893,0.119178,67126.0,67125.0,0.002794]
[1721556510105,0.238336,67132.0,67123.0,0.09928738]
[1721556510106,0.1023,67127.0,67124.0,0.002794]
[1721556510523,0.119176,67128.0,67124.0,0.002794]
[1721556510733,0.1023,67127.0,67124.0,0.002794]
[1721556510947,0.119176,67128.0,67124.0,0.002794]
[1721556511154,0.1467,67127.0,67124.0,0.002794]
[1721556511980,0.1467,67126.0,67123.0,0.002794]
[1721556512185,0.0796,67125.0,67123.0,0.05]
[1721556512395,0.119176,67128.0,67122.0,0.20677801]
[1721556512396,0.1421,67124.0,67122.0,0.25398401]
[1721556512609,0.1421,67127.0,67124.0,0.003]
[1721556512819,0.1421,67126.0,67124.0,0.003]
[1721556513030,0.0625,67124.0,67123.0,0.05]
[1721556513240,0.1421,67124.0,67123.0,0.055]
[1721556513450,0.1421,67124.0,67123.0,0.059]
[1721556513657,0.1421,67124.0,67123.0,0.004]
[1721556513863,0.0796,67126.0,67122.0,0.32316901]
[1721556514072,0.1421,67125.0,67124.0,0.007]
[1721556514283,0.1421,67125.0,67124.0,0.126182]
[1721556514504,0.1421,67125.0,67124.0,0.123182]
[1721556515351,0.1421,67125.0,67124.0,0.85389401]
[1721556515555,0.1421,67125.0,67124.0,1.09225801]
[1721556515997,0.1421,67125.0,67124.0,1.08825801]
[1721556516205,0.1451,67125.0,67124.0,1.08825801]
[1721556516836,0.003,67125.0,67124.0,1.11125801]
[1721556517049,0.003,67125.0,67124.0,1.11325801]
[1721556517275,0.0625,67129.0,67128.0,0.69547727]
[1721556517480,0.0625,67129.0,67128.0,0.84985901]
[1721556519863,0.0635,67129.0,67128.0,0.84985901]
[1721556522144,0.0635,67129.0,67128.0,0.9735403]
[1721556522587,0.001,67129.0,67128.0,0.84985901]
[1721556523119,0.0625,67133.0,67132.0,0.357504]
[1721556523325,0.0625,67133.0,67132.0,0.51188574]
[1721556523520,0.0625,67133.0,67132.0,1.08816001]
[1721556523748,0.0796,67134.0,67133.0,0.45710027]
[1721556523948,0.0625,67136.0,67135.0,0.45708927]
[1721556524153,0.00553996,67137.0,67136.0,0.45708527]
[1721556524300,0.00553996,67137.0,67136.0,0.61146701]
[1721556525124,0.00553996,67137.0,67136.0,0.84978901]
[1721556525527,0.00536069,67137.0,67136.0,0.84978901]
[1721556525961,0.00736069,67137.0,67136.0,0.84978901]
[1721556526381,0.00736069,67137.0,67136.0,0.9734534]
[1721556527296,0.00736069,67137.0,67136.0,0.84978901]
[1721556527523,0.00736069,67137.0,67136.0,0.9734519]
[1721556527726,0.00736069,67137.0,67136.0,0.84978901]
[1721556527930,0.00736069,67137.0,67136.0,0.97345162]
[1721556528394,0.00836069,67137.0,67136.0,0.97345162]
[1721556529176,0.00836069,67137.0,67136.0,1.21177362]
[1721556530450,0.00836069,67137.0,67136.0,1.08811101]
[1721556530662,0.00836069,67137.0,67136.0,1.2117733]
[1721556531483,0.00836069,67137.0,67136.0,1.5512953]
[1721556531691,0.00836069,67137.0,67136.0,2.0712953]
[1721556532306,0.00736069,67137.0,67136.0,2.0712953]
[1721556532722,0.00636069,67137.0,67136.0,2.0712953]
[1721556533135,0.00536069,67137.0,67136.0,2.0752953]
[1721556533594,0.00536069,67137.0,67136.0,1.95163301]
[1721556533804,0.00536069,67137.0,67136.0,2.07528077]
[1721556534572,0.00536069,67137.0,67136.0,2.07628077]
[1721556535195,0.00536069,67137.0,67136.0,1.55628077]
[1721556535393,0.00536069,67137.0,67136.0,2.31528077]
[1721556535594,0.00536069,67137.0,67136.0,2.32428077]
[1721556535964,0.00536069,67137.0,67136.0,2.36408077]
[1721556536397,0.00536069,67137.0,67136.0,2.38208077]
[1721556536604,0.00536069,67137.0,67136.0,1.63208077]
[1721556536812,0.00536069,67137.0,67136.0,2.32208077]
[1721556537633,0.00536069,67137.0,67136.0,2.31308077]
[1721556537846,0.00536069,67137.0,67136.0,2.32208077]
[1721556540820,0.00536069,67137.0,67136.0,2.26020477]
[1721556542243,0.00536069,67137.0,67136.0,1.25368277]
[1721556542471,0.00536069,67137.0,67136.0,1.13003501]
[1721556542663,0.00536069,67137.0,67136.0,1.25369136]
[1721556544145,0.00536069,67137.0,67136.0,1.23069136]
[1721556545648,0.00536069,67137.0,67136.0,1.10703501]
[1721556545860,0.00536069,67137.0,67136.0,1.23069178]
[1721556548720,0.00536069,67137.0,67136.0,1.10703501]
[1721556548943,0.00536069,67137.0,67136.0,0.9923698]
[1721556550320,0.00536069,67137.0,67136.0,1.8423698]
[1721556550743,0.00536069,67137.0,67136.0,0.9923698]
[1721556552112,0.00536069,67137.0,67136.0,1.07126978]
[1721556552351,0.00536069,67137.0,67136.0,2.01959178]
[1721556552596,0.00536069,67137.0,67136.0,0.14258077]
[1721556552812,0.14816069,67137.0,67136.0,0.14258077]
[1721556553650,0.14816069,67137.0,67136.0,0.13358077]
[1721556553854,0.15016069,67137.0,67136.0,0.12458077]
[1721556554059,0.15116069,67137.0,67136.0,0.12458077]
[1721556554666,0.15016069,67137.0,67136.0,0.12458077]
[1721556554895,0.26931969,67137.0,67136.0,0.12458077]
[1721556555023,0.27031969,67137.0,67136.0,0.000924]
[1721556555229,0.26831969,67137.0,67136.0,0.12460276]
[1721556555862,0.34306406,67137.0,67136.0,0.12460276]
[1721556556236,0.34606406,67137.0,67136.0,0.12460276]
[1721556556638,0.27131969,67137.0,67136.0,0.12460276]
[1721556557525,0.27131969,67137.0,67136.0,0.000924]
[1721556559212,0.50963769,67137.0,67136.0,0.000924]
[1721556559416,0.74795569,67137.0,67136.0,0.000924]
[1721556560058,0.74395569,67137.0,67136.0,0.000924]
[1721556560294,0.74395569,67137.0,67136.0,0.001924]
[1721556560295,0.74595569,67137.0,67136.0,0.001924]
[1721556560494,0.86753127,67137.0,67136.0,0.002924]
[1721556560846,0.86553127,67137.0,67136.0,0.001924]
[1721556561229,0.86753127,67137.0,67136.0,0.002924]
[1721556561661,0.86553127,67137.0,67136.0,0.001924]
[1721556561906,0.90911546,67137.0,67136.0,0.001924]
[1721556562518,0.91511546,67137.0,67136.0,0.002924]
[1721556562930,0.90911546,67137.0,67136.0,0.001924]
[1721556563137,1.110247,67137.0,67136.0,0.001924]
[1721556563588,1.116247,67137.0,67136.0,0.002924]
[1721556563986,1.110247,67137.0,67136.0,0.001924]
[1721556564189,1.116247,67137.0,67136.0,0.002924]
[1721556564722,1.110247,67137.0,67136.0,0.001924]
[1721556564918,1.116247,67137.0,67136.0,0.002924]
[1721556565226,1.107247,67137.0,67136.0,0.001924]
[1721556565428,1.19638625,67137.0,67136.0,0.001924]
[1721556566082,1.21038625,67137.0,67136.0,0.002924]
[1721556566288,1.19038625,67137.0,67136.0,0.000924]
[1721556566494,1.19038625,67137.0,67136.0,0.001924]
[1721556566495,1.20437377,67137.0,67136.0,0.001924]
[1721556566705,1.21837377,67137.0,67136.0,0.002924]
[1721556567547,1.71107351,67137.0,67136.0,0.002924]
[1721556567760,1.62194674,67137.0,67136.0,0.002924]
[1721556572019,1.60794674,67137.0,67136.0,0.001924]
[1721556572661,1.60794674,67137.0,67114.0,0.002794]
[1721556572662,0.73699,67115.0,67114.0,0.002794]
[1721556573065,0.2384,67114.0,67105.0,0.1297]
[1721556573403,0.11921,67109.0,67106.0,0.002794]
[1721556573605,0.11921,67109.0,67105.0,0.28408174]
[1721556574011,0.11921,67109.0,67107.0,0.05]
[1721556574820,0.11921,67109.0,67105.0,0.23408174]
[1721556575246,0.11921,67109.0,67107.0,0.05]
[1721556575452,0.119207,67110.0,67107.0,0.05]
[1721556575670,0.1817883,67110.0,67107.0,0.05]
[1721556576080,0.003,67109.0,67107.0,0.05]
[1721556576488,0.008,67109.0,67107.0,0.05]
[1721556576897,0.003,67109.0,67107.0,0.05]
[1721556577513,0.122209,67109.0,67107.0,0.05]
[1721556577721,0.122209,67109.0,67105.0,0.28408174]
[1721556578366,0.119211,67108.0,67105.0,0.28408174]
[1721556578983,0.119212,67107.0,67105.0,0.1297]
[1721556579190,0.119212,67107.0,67105.0,0.0797]
[1721556579394,0.04252063,67106.0,67105.0,0.1297]
[1721556579598,0.119211,67108.0,67105.0,0.1297]
[1721556579810,0.119212,67107.0,67105.0,0.1297]
[1721556580160,0.119212,67107.0,67105.0,0.0797]
[1721556580369,0.120212,67107.0,67105.0,0.0797]
[1721556580571,0.18647393,67107.0,67105.0,0.0797]
[1721556581690,0.06726193,67107.0,67105.0,0.0797]
[1721556581907,0.001,67107.0,67106.0,0.16881627]
[1721556582589,0.001,67107.0,67106.0,0.17333022]
[1721556582886,0.001,67107.0,67106.0,0.04960227]
[1721556583289,0.119206,67111.0,67107.0,0.04960227]
[1721556583496,0.001,67107.0,67106.0,0.04960227]
[1721556583629,0.001,67107.0,67106.0,0.1237281]
[1721556583830,0.001,67107.0,67106.0,0.04960227]
[1721556584036,0.001,67107.0,67106.0,0.17333037]
[1721556584442,0.001,67107.0,67106.0,0.29254437]
[1721556584898,0.0498606,67110.0,67106.0,0.29254437]
[1721556585135,0.0498606,67110.0,67107.0,0.17333037]
[1721556585407,0.0498606,67110.0,67106.0,0.16881627]
[1721556585629,0.04114636,67109.0,67107.0,0.17332977]
[1721556585835,0.04114636,67109.0,67108.0,0.1237275]
[1721556586979,0.04114636,67109.0,67104.0,0.21881827]
[1721556586980,0.003,67110.0,67104.0,0.21881827]
[1721556587196,0.003,67110.0,67105.0,0.12373041]
[1721556587412,0.003,67110.0,67106.0,0.12373041]
[1721556587588,0.003,67110.0,67104.0,0.21881827]
[1721556587589,0.003,67110.0,67107.0,0.12373041]
[1721556587799,0.119206,67111.0,67108.0,0.12373041]
[1721556588019,0.119206,67111.0,67105.0,0.119215]
[1721556588225,0.002,67109.0,67106.0,0.12372987]
[1721556588391,0.002,67109.0,67107.0,0.12372987]
[1721556588609,0.002,67109.0,67105.0,0.119215]
[1721556588610,0.17678408,67111.0,67108.0,0.12372987]
[1721556588807,0.119206,67111.0,67109.0,0.12372987]
[1721556588969,0.003,67110.0,67105.0,0.119215]
[1721556589208,0.003,67110.0,67106.0,0.12373165]
[1721556589409,0.003,67109.0,67107.0,0.12373165]
[1721556589657,0.003,67109.0,67108.0,0.12373165]
[1721556590477,0.003,67109.0,67108.0,0.12372954]
[1721556591465,0.005,67109.0,67108.0,0.12372954]
[1721556592228,0.002,67109.0,67108.0,0.12372954]
[1721556592377,0.002,67109.0,67108.0,0.38503954]
[1721556592577,0.119201,67114.0,67108.0,0.38503954]
[1721556592786,0.119197,67116.0,67111.0,0.119204]
[1721556592940,0.17707556,67116.0,67112.0,0.12372954]
[1721556593154,0.17707556,67116.0,67111.0,0.119204]
[1721556593363,0.17707556,67116.0,67112.0,0.12372808]
[1721556593584,0.17707556,67116.0,67113.0,0.12372783]
[1721556593819,0.17707556,67116.0,67111.0,0.119204]
[1721556594020,0.17707556,67116.0,67112.0,0.12372782]
[1721556594222,0.17707556,67116.0,67113.0,0.12372782]
[1721556594426,0.17707556,67116.0,67111.0,0.119204]
[1721556594626,0.17707556,67116.0,67112.0,0.1237272]
[1721556594875,0.07412611,67115.0,67113.0,0.1237272]
[1721556595080,0.008,67114.0,67111.0,0.119204]
[1721556595280,0.008,67114.0,67112.0,0.12372845]
[1721556595458,0.008,67114.0,67113.0,0.12372845]
[1721556595459,0.07515486,67114.0,67113.0,0.12372845]
[1721556596739,0.08315486,67114.0,67113.0,0.12372845]
[1721556596977,0.008,67114.0,67113.0,0.51981187]
[1721556597218,0.017,67114.0,67113.0,1.11581887]
[1721556597456,0.017,67114.0,67113.0,1.11580571]
[1721556597943,0.119183,67124.0,67117.0,0.119193]
[1721556598208,0.119183,67124.0,67118.0,0.1237147]
[1721556598465,0.119183,67124.0,67117.0,0.119193]
[1721556598466,0.16973483,67124.0,67119.0,0.1237147]
[1721556598704,0.16973483,67124.0,67120.0,0.1237147]
[1721556598940,0.119184,67123.0,67121.0,0.1237147]
[1721556599168,0.119184,67123.0,67117.0,0.119193]
[1721556599169,0.17381298,67123.0,67117.0,0.119193]
[1721556599425,0.17381298,67123.0,67118.0,0.12371494]
[1721556599655,0.0550368,67122.0,67119.0,0.12371494]
[1721556599884,0.0550368,67122.0,67120.0,0.12371494]
[1721556600147,0.0550368,67122.0,67117.0,0.119193]
[1721556600375,0.15043008,67121.0,67118.0,0.12371495]
[1721556600599,0.15043008,67121.0,67119.0,0.12371495]
[1721556600807,0.15043008,67121.0,67120.0,0.12371495]
[1721556601975,0.16143008,67121.0,67120.0,0.12371495]
[1721556602466,0.15643008,67121.0,67120.0,0.12371516]
[1721556602704,0.16143008,67121.0,67120.0,0.12371516]
[1721556602941,0.22323008,67121.0,67120.0,0.12371516]
[1721556603636,0.10404208,67121.0,67117.0,0.119194]
[1721556603857,0.04615971,67120.0,67118.0,0.12371517]
[1721556604126,0.04615971,67120.0,67119.0,0.12371517]
[1721556604383,0.10404208,67121.0,67119.0,0.12371517]
[1721556604643,0.10404208,67121.0,67117.0,0.119194]
[1721556604861,0.21223008,67121.0,67118.0,0.12371517]
[1721556605166,0.21223008,67121.0,67115.0,0.04960227]
[1721556605167,0.119194,67118.0,67115.0,0.04960227]
[1721556605382,0.119191,67119.0,67116.0,0.12371953]
[1721556605592,0.19299468,67119.0,67115.0,0.04960227]
[1721556605812,0.19299468,67119.0,67116.0,0.12371783]
[1721556606025,0.19299468,67119.0,67115.0,0.04960227]
[1721556606232,0.19299468,67119.0,67116.0,0.12372006]
[1721556606440,0.17807863,67118.0,67115.0,0.04960227]
[1721556606648,0.17807863,67118.0,67116.0,0.12371992]
[1721556606844,0.05888463,67118.0,67115.0,0.04960227]
[1721556607074,0.05888463,67118.0,67116.0,0.12372006]
[1721556607204,0.05888463,67118.0,67115.0,0.04960227]
[1721556607205,0.03878412,67117.0,67115.0,0.04960227]
[1721556607413,0.03878412,67117.0,67116.0,0.12372006]
[1721556608484,0.03878412,67117.0,67115.0,0.04960227]
[1721556608485,0.03978412,67117.0,67115.0,0.04960227]
[1721556608726,0.07079739,67116.0,67115.0,0.04960227]
[1721556608954,0.07079739,67116.0,67115.0,0.29252016]
[1721556611929,0.07779739,67116.0,67115.0,0.29252016]
[1721556612202,0.07779739,67116.0,67115.0,0.29352016]
[1721556612410,0.07079739,67116.0,67115.0,0.29352016]
[1721556612819,0.07079739,67116.0,67115.0,0.29252016]
[1721556613024,0.07779739,67116.0,67115.0,0.29252016]
[1721556613484,0.07079739,67116.0,67115.0,0.29252016]
[1721556613722,0.07079739,67116.0,67102.0,0.10135536]